Cogmind - Beta 16 @@@ ROGUE MODE // 2026.01.27 @ 17:08:58 // Winter2019/RPGLIKE Player: Gallgagger Result: Destroyed by A-27 Freighter via exploding Fusion Modulator Performance ------------- Evolutions (3) 1500 Regions Visited (4) 800 Robots Destroyed (93) 465 Value Destroyed (3093) 3093 Prototype IDs (18) 360 Alien Tech Used (0) 0 Bonus (48) 48 TOTAL SCORE: 6266 Bonus ------- High Alert Combat Kills 48 Cogmind --------- Core Integrity 0/750 Matter 145/300 Energy 196/200 System Corruption 5% Temperature Cool (9) Movement Flying (34) Location -7/Factory Parts ------- > --- POWER (2) -------- Micro Nuclear Core Micro Nuclear Core > --- PROPULSION (4) --- Xenon Bombardment Thruster Xenon Bombardment Thruster Xenon Bombardment Thruster > --- UTILITY (5) ------ Scrap Engine Makeshift Microdissipator Network Hacking Suite System Shield > --- WEAPON (3) ------- Improved Datajack Shotgun Laser Autogun Construct/C > --- INVENTORY (3) ---- Protomatter-33 Xenon Bombardment Thruster Makeshift Microdissipator Network Peak State ------------ > --- POWER ------------ Micro Nuclear Core Micro Nuclear Core > --- PROPULSION ------- Xenon Bombardment Thruster Xenon Bombardment Thruster Xenon Bombardment Thruster Xenon Bombardment Thruster > --- UTILITY ---------- Scrap Engine Makeshift Microdissipator Network Hacking Suite System Shield > --- WEAPON ----------- Improved Datajack Shotgun Laser Autogun Construct/C > --- INVENTORY -------- Xenon Bombardment Thruster Makeshift Microdissipator Network Plasma Cannon [Rating: 64] Favorites ----------- Power Light Ion Engine Engine Light Ion Engine Power Core Micro Nuclear Core Propulsion Wheel Wheel Wheel Hover Unit Improved Hover Unit Flight Unit Xenon Bombardment Thruster Utility Seismic Detector Device Seismic Detector Hackware Hacking Suite Protection Scrap Shield Weapon Medium Laser Energy Gun Medium Laser Ballistic Gun Barrage Gun Ballistic Cannon Constructs Special Melee Weapon Improved Datajack Build | -11 -10 -10 -9 -7 ------- Run | Yrd Mat Sub Rec Fac Slots Evolved 10 | 3 4 . 1 2 Power 1 | . 1 . . . Propulsion 3 | 1 1 . . 1 Utility 4 | 1 1 . 1 1 Weapon 2 | 1 1 . . . Parts Attached 42 | 7 5 8 5 17 Power 4 | 1 1 . . 2 Engine 2 | 1 1 . . . Core 2 | . . . . 2 Reactor . | . . . . . Propulsion 12 | 2 2 . 2 6 Treads . | . . . . . Leg . | . . . . . Wheel 4 | 2 2 . . . Hover 4 | . . . 2 2 Flight 4 | . . . . 4 Utility 12 | 2 1 2 3 4 Device 5 | 2 . . 3 . Storage . | . . . . . Processor . | . . . . . Hackware 4 | . . . . 4 Protection 3 | . 1 2 . . Artifact . | . . . . . Weapon 14 | 2 1 6 . 5 Energy Gun 7 | 2 1 4 . . Energy Cannon . | . . . . . Ballistic Gun 3 | . . 2 . 1 Ballistic Cannon 3 | . . . . 3 Launcher . | . . . . . Special Weapon . | . . . . . Impact Weapon . | . . . . . Slashing Weapon . | . . . . . Piercing Weapon . | . . . . . Special Melee Weapon 1 | . . . . 1 Unidentified Prototypes 3 | . . . 1 2 Corrupted Parts 1 | . . . . 1 System Corruption 1 | . . . . 1 Parts Lost 3 | . . . 1 2 Power . | . . . . . Propulsion 2 | . . . . 2 Utility 1 | . . . 1 . Weapon . | . . . . . Highest Loss Streak 1 | . . . 1 1 To Critical Strikes . | . . . . . Average Backups 1 | . . 1 1 2 Power . | . . . . . Propulsion . | . . . . . Utility . | . . . . 2 Weapon . | . . 1 1 . Tool/Special . | . . . . . Unused Backups 6 | . . . 1 5 Power . | . . . . . Propulsion 1 | . . . . 1 Utility 2 | . . . . 2 Weapon 3 | . . . 1 2 Tool/Special . | . . . . . Average Slot Usage (%) 89 | . 99 91 83 81 Engine 13 | . 13 18 17 3 Core 2 | . . . . 10 Wheel 21 | . 27 27 23 . Hover 2 | . . . 2 12 Flight 2 | . . . . 12 Device 15 | . 27 10 14 10 Hackware 3 | . . . . 17 Protection 4 | . . 9 5 . Energy Gun 17 | . 27 23 12 . Ballistic Gun 3 | . . 3 7 1 Ballistic Cannon 1 | . . . . 5 Peak Build Rating 64 | 9 14 20 38 64 Average Rating 23 | 6 9 15 25 53 On Entrance 16 | . 9 14 19 38 Avg Prop Armor Cover (%) 10 | . . . 10 . Naked Turns . | . . . . . Heaviest Build 35 | 9 17 35 35 17 Greatest Support 40 | 31 35 35 40 34 Greatest Overweight (x) . | . . . . . Average Overweight (x) . | . . . . . Largest Inventory Capacity 3 | 1 2 2 3 3 Average Capacity 2 | 1 1 2 2 3 Most Carried 3 | . 2 2 3 3 Average Carried 1 | . . 1 1 2 Final Capacity 3 | 1 2 2 3 3 Final Carried 3 | . 1 2 3 3 Scrap Engine Consumption 27 | . . . 11 16 Constructs Created 2 | . . . 2 . Constructs Modified 9 | . . . 2 7 Class Distribution -------------------- 35% | Scavenger-Gunner 31% | Mutant 10% | Subdweller-Gunner 10% | Hacker-Mutant 9% | Hacker-Sprinter Dominant Class ---------------- Mutant | -10/Materials Scavenger-Gunner | -10/Subcaves Scavenger-Gunner | -9/Recycling Hacker-Mutant | -7/Factory Resources | -11 -10 -10 -9 -7 ----------- Run | Yrd Mat Sub Rec Fac Matter Collected 987 | 270 55 303 121 238 Remotely . | . . . . . Salvage Created 3027 | 197 1178 896 268 488 Parts 185 | 12 51 68 21 33 Haulers Intercepted 2 | . 2 . . . Recyclers Shooed . | . . . . . Parts Field Recycled . | . . . . . Retrieved Matter . | . . . . . Parts Self-Destructed 20 | . . 20 . . Prevented . | . . . . . Parts Restored . | . . . . . Kills | -11 -10 -10 -9 -7 ------- Run | Yrd Mat Sub Rec Fac Combat Hostiles Destroyed 77 | . 35 20 7 15 Guns 58 | . 31 20 7 . Cannons 15 | . . . . 15 Classes Destroyed 14 | 3 4 3 2 2 Worker 4 | 2 2 . . . Builder 1 | . . . 1 . Tunneler 6 | 6 . . . . Hauler 2 | . 2 . . . Recycler 1 | 1 . . . . Turret 2 | . . 2 . . Swarmer 11 | . 3 4 . 4 Grunt 35 | . 29 . . 6 Sentry 7 | . . 1 4 2 Hunter 2 | . . . . 2 Programmer 1 | . . . . 1 Artisan 1 | . . 1 . . Subdweller 18 | . 3 15 . . Scrapper 3 | . . . 3 . Best Kill Streak 4 | 4 4 4 3 4 Combat Bots Only 4 | . 4 3 3 4 Max Kills in Single Turn 1 | 1 1 1 1 1 Gunslinging . | . . . . . Exploded . | . . . . . Melee . | . . . . . Uniques/NPCs Destroyed . | . . . . . Combat | -11 -10 -10 -9 -7 -------- Run | Yrd Mat Sub Rec Fac Hostile Shots Fired 447 | . 127 106 32 182 Missed 176 | . 37 41 6 92 Hits 271 | . 90 65 26 90 Projectile 271 | . 90 65 26 90 AOE 3 | . . 2 . 1 Critical Strikes 10 | . 1 1 5 3 Damage Taken 4218 | . 1128 1014 530 1546 Core 3171 | . 919 640 358 1254 Absorbed by Shields . | . . . . . Redirected to Core 2516 | . 665 521 300 1030 Regen/Repaired (Parts) 49 | . 8 . . 41 Core Remaining (%) 98 | 100 . . 97 . Volleys Fired 299 | 21 108 91 15 64 Largest 3 | 2 2 3 3 2 Hottest 170 | 100 100 170 106 96 Shots Fired 598 | 42 214 218 57 67 Gun 534 | 42 214 218 57 3 Cannon 64 | . . . . 64 Launcher . | . . . . . Special . | . . . . . Kinetic 99 | . . 46 18 35 Thermal 499 | 42 214 172 39 32 Explosive . | . . . . . Electromagnetic . | . . . . . Robot Hit Streak 55 | 11 31 55 14 15 Robot Miss Streak 4 | 2 2 1 4 3 Penetration Max . | . . . . . Secondary Targets 9 | . 3 4 2 . Max Gunslinging Chain 1 | . 1 1 1 . Autonomous 25 | . . 1 24 . Shots Hit Robots 437 | 29 171 129 51 57 Core Hits 176 | 10 72 52 16 26 Critical Kills . | . . . . . Critical Parts Destroyed . | . . . . . Critical Strikes 35 | 6 19 9 1 . Burn 34 | 6 19 8 1 . Destroy 1 | . . 1 . . Melee Attacks 2 | . . . . 2 Impact . | . . . . . Slashing . | . . . . . Piercing . | . . . . . Sneak Attacks 2 | . . . . 2 Combat Hostiles . | . . . . . Follow-up Attacks . | . . . . . Damage Inflicted 7361 | 359 2303 1966 577 2156 Guns 5236 | 359 2303 1966 577 31 Cannons 2125 | . . . . 2125 Explosions . | . . . . . Melee . | . . . . . Ramming . | . . . . . Kinetic 1585 | . . 241 269 1075 Thermal 5776 | 359 2303 1725 308 1081 Explosive . | . . . . . Electromagnetic . | . . . . . Impact . | . . . . . Slashing . | . . . . . Piercing . | . . . . . Highest Corruption 5 | . 2 2 2 5 Average Corruption 2 | . 2 2 2 3 Corruption Purged . | . . . . . Corruption Blocked . | . . . . . Effects 67 | . 8 34 15 10 Message Errors 22 | . 1 10 6 5 Matter Fused 9 | . 1 5 2 1 Heat Flow Errors 11 | . . 8 2 1 Energy Discharges 10 | . 3 5 1 1 Data Loss (minor) 7 | . . 3 2 2 Data Loss (major) 4 | . 1 1 2 . Alerts 2 | . . 2 . . Weapon Failures 2 | . 2 . . . Overload Shots . | . . . . . Overflow Damage 55 | . . . . 55 Projectiles 55 | . . . . 55 Explosions . | . . . . . Melee . | . . . . . Knockbacks 12 | . . . . 12 Impact . | . . . . . Kinetic 12 | . . . . 12 Secondary . | . . . . . Self-Inflicted Damage . | . . . . . Shots . | . . . . . Rammed . | . . . . . Targets Rammed . | . . . . . Kicked . | . . . . . Crushed . | . . . . . Highest Temperature 228 | . 34 228 154 189 Average Temperature 43 | . 3 102 42 71 Received Heat Transfer 1282 | . 486 258 380 158 Siege Activations . | . . . . . Martial Activations . | . . . . . Shielding Activations . | . . . . . Robots Disrupted . | . . . . . Combat Hostiles . | . . . . . Robots Corrupted . | . . . . . Combat Hostiles . | . . . . . Parts Fried . | . . . . . Impact Corruptions . | . . . . . Robots Melted 4 | . 4 . . . Combat Hostiles 4 | . 4 . . . Parts Melted 40 | 6 21 6 7 . Heat Transferred 15443 | 1517 7844 4403 761 918 Parts Sabotaged . | . . . . . Parts Stolen . | . . . . . Parts Stripped . | . . . . . Power Chain Reactions . | . . . . . Alert | -11 -10 -10 -9 -7 ------- Run | Yrd Mat Sub Rec Fac Maximum Alert Level 2 | . 2 . . 1 Low Security (%) 64 | 100 50 . 100 46 Level 1 27 | . 27 . . 53 Level 2 7 | . 21 . . . Level 3 . | . . . . . Level 4 . | . . . . . Level 5 . | . . . . . High Security . | . . . . . Max Security . | . . . . . Peak Influence 506 | 10 506 . 118 300 Initial 300 | . . . 96 300 Average 163 | 1 229 . 51 204 Influence Increases 2367 | 45 1034 230 265 793 Destroy 0b10 Robot/C 1160 | . 640 140 80 300 Destroy 0b10 Robot/NC 70 | 45 20 . 5 . Destroy Leader 194 | . 134 . . 60 Successful Hack 30 | . 30 . . . Select Force Hacks 340 | . 160 . 180 . Disable Machine 15 | . . . . 15 Destroy Structure 18 | . 5 . . 13 Advance Influence 300 | . . . . 300 Lose Combat Pursuer 240 | . 45 90 . 105 Influence Decreases 2100 | 45 545 519 465 526 Entered New Map 340 | . . 236 104 . Time Decay 1730 | 45 545 283 351 506 Lost Part 30 | . . . 10 20 Squads Dispatched 19 | . 11 . . 8 Investigation 14 | . 10 . . 4 Extermination 3 | . . . . 3 Reinforcement 2 | . 1 . . 1 Assault . | . . . . . Garrison . | . . . . . Intercept . | . . . . . Searches Triggered . | . . . . . Construction Impeded . | . . . . . Haulers Reinforced . | . . . . . Active Scanning Responses . | . . . . . Cargo Convoy Interrupts 1 | . . . . 1 Stealth | -11 -10 -10 -9 -7 --------- Run | Yrd Mat Sub Rec Fac Distress Signals 3 | . 1 . . 2 Communications Jammed . | . . . . . Distress Signals . | . . . . . Times Spotted 129 | . 48 23 7 51 Peak Tracking Total 10 | . 4 4 5 10 Tactical Retreats 11 | . 4 2 . 5 Traps | -11 -10 -10 -9 -7 ------- Run | Yrd Mat Sub Rec Fac Traps Triggered 8 | . 3 . . 5 Indirectly . | . . . . . Trap Hack Attempts . | . . . . . Triggered . | . . . . . Disarmed . | . . . . . Reprogrammed . | . . . . . Reused . | . . . . . Traps Extracted . | . . . . . Installed . | . . . . . Triggered . | . . . . . Machines | -11 -10 -10 -9 -7 ---------- Run | Yrd Mat Sub Rec Fac Machines Disabled 2 | . . 1 . 1 Max in Single Turn 1 | . . 1 . 1 Garrison Access 2 | . . . . 2 Machines Repaired . | . . . . . Machines Dismantled . | . . . . . Machines Sabotaged 2 | . 2 . . . Overloaded Fab Kills . | . . . . . Hacking | -11 -10 -10 -9 -7 --------- Run | Yrd Mat Sub Rec Fac Machines Accessed 25 | . 10 1 7 7 Terminals 10 | . 7 . . 3 Fabricators 2 | . . . . 2 Repair Stations 1 | . 1 . . . Recycling Units 8 | . 2 . 6 . Scanalyzers . | . . . . . Garrison Access 2 | . . . . 2 Total Hacks 77 | . 30 4 16 27 Successful 52 | . 20 4 14 14 Failed 24 | . 9 . 2 13 Catastrophic 1 | . . . . 1 Database Lockouts 1 | . 1 . . . Manual 43 | . 24 . 6 13 Terminals 39 | . 27 . . 12 Fabricators 10 | . . . . 10 Repair Stations 1 | . 1 . . . Recycling Units 11 | . 2 . 9 . Scanalyzers . | . . . . . Garrison Access 5 | . . . . 5 Terminal Hacks 16 | . 4 4 7 1 Record 8 | . . 3 5 . Part Schematic 1 | . . . . 1 Robot Analysis 2 | . 2 . . . Branch Access Points 1 | . 1 . . . Locate Traps 1 | . 1 . . . Proto ID Catalog 1 | . . 1 . . Release Object 2 | . . . 2 . Fabricator Hacks 6 | . . . . 6 Network Status 1 | . . . . 1 Load Schematic 3 | . . . . 3 Build 2 | . . . . 2 Repair Station Hacks . | . . . . . Recycling Unit Hacks 1 | . . . 1 . Retrieve Components 1 | . . . 1 . Scanalyzer . | . . . . . Garrison Access Hacks 2 | . . . . 2 Seal Access 2 | . . . . 2 Unauthorized Hacks 27 | . 16 . 6 5 Terminals 17 | . 13 . . 4 Botnet 9 | . 6 . . 3 Disrupt 1 | . . . . 1 Operators 1 | . 1 . . . Sabotage 5 | . 5 . . . Search 1 | . 1 . . . Fabricators 1 | . . . . 1 Haulers 1 | . . . . 1 Repair Stations 1 | . 1 . . . Patch 1 | . 1 . . . Recycling Units 8 | . 2 . 6 . Tunnel 8 | . 2 . 6 . Scanalyzers . | . . . . . Garrison Access . | . . . . . Data Cores Recovered . | . . . . . Used . | . . . . . Hacking Detections 11 | . 4 . 1 6 Full Trace Events 4 | . 1 . . 3 Feedback Events 1 | . . . . 1 Corruption 1 | . . . . 1 Feedback Blocked . | . . . . . Robot Schematics Acquired . | . . . . . Robots Built . | . . . . . Authchips . | . . . . . Time . | . . . . . Total Robot Build Rating . | . . . . . Part Schematics Acquired 1 | . . . . 1 Parts Built 2 | . . . . 2 Authchips 1 | . . . . 1 Time 174 | . . . . 174 Total Part Build Rating 6 | . . . . 6 Part Studies Acquired . | . . . . . Parts Repaired . | . . . . . Time . | . . . . . Parts Recycled . | . . . . . Recycled Matter . | . . . . . Retrieved Matter . | . . . . . Retrieved Components 4 | . . . 4 . Parts Scanalyzed . | . . . . . Part Schematics Acquired . | . . . . . Parts Damaged . | . . . . . Bothacking | -11 -10 -10 -9 -7 ------------ Run | Yrd Mat Sub Rec Fac Used RIF Installer . | . . . . . Robots Hacked 2 | . . . . 2 Non-combat 2 | . . . . 2 Combat . | . . . . . Robot Hacks Applied 2 | . . . . 2 find_chute 2 | . . . . 2 Relay Couplers Released . | . . . . . Fabnet Peak Effective % . | . . . . . Robots Rewired . | . . . . . Allies Hacked . | . . . . . Hacks Repelled . | . . . . . Allies | -11 -10 -10 -9 -7 -------- Run | Yrd Mat Sub Rec Fac Total Allies . | . . . . . Largest Group . | . . . . . Highest-Rated Group . | . . . . . Highest-Rated Ally . | . . . . . Total Orders . | . . . . . Ally Attacks . | . . . . . Total Damage . | . . . . . Kills . | . . . . . Allies Corrupted . | . . . . . Allies Melted . | . . . . . Intel | -11 -10 -10 -9 -7 ------- Run | Yrd Mat Sub Rec Fac Active Infowar (turns) 4868 | 143 1628 2436 661 . Terrain 2101 | 143 1628 330 . . Seismic 4729 | 4 1628 2436 661 . Robot Analysis Total 2 | . 2 . . . Derelict Logs Recovered . | . . . . . Drone Launches . | . . . . . Drone Recoveries . | . . . . . Exploration | -11 -10 -10 -9 -7 ------------- Run | Yrd Mat Sub Rec Fac Turns Passed 6795 | 220 1628 2436 1146 1365 Spaces Moved 6966 | 84 1053 2452 1133 2244 Core 1 | 1 . . . . Treads . | . . . . . Legs . | . . . . . Wheels 4539 | 83 1053 2452 951 . Hover 1268 | . . . 182 1086 Flight 1158 | . . . . 1158 Fastest Speed 31 | 50 80 80 55 31 Average Speed 68 | 89 80 80 79 42 Slowest Speed 90 | 90 90 80 80 55 Overloaded Moves . | . . . . . Propulsion Burnouts . | . . . . . Robots Hopped 23 | . . . . 23 Potential Cave-ins . | . . . . . Cave-ins Triggered . | . . . . . Exploration Rate (%) 70 | 4 98 96 99 54 Regions Visited 4 Branch Regions 2 Pre-discovered Areas 8 | . 2 . 6 . Known Exits Taken . | . . . . . Unknown Exits Taken 4 | 1 1 1 1 . Scrap Searched 9 | . . 9 . . Spaces Dug . | . . . . . Terrain Destroyed 13 | . . . . 13 Melee . | . . . . . Projectile 13 | . . . . 13 AOE . | . . . . . Terrain Rammed . | . . . . . Walls Destroyed . | . . . . . Machines Disabled . | . . . . . Actions | -11 -10 -10 -9 -7 --------- Run | Yrd Mat Sub Rec Fac Total 8480 | 183 1616 2758 1355 2568 Wait 994 | 72 386 158 162 216 Move 6917 | 83 1052 2451 1132 2199 Hop 22 | . . . . 22 Pick Up 19 | . 4 6 3 6 Fast Attach 22 | 7 4 1 3 7 Attach 1 | . . . . 1 Detach . | . . . . . Swap 25 | . 1 7 4 13 Drop 31 | . 4 8 8 11 Fire 299 | 21 108 91 15 64 Melee 2 | . . . . 2 Ram . | . . . . . Kick . | . . . . . Crush . | . . . . . Escape Stasis 3 | . . . . 3 Rewire . | . . . . . Trap . | . . . . . Miscellaneous 145 | . 57 36 28 24 Route ------- -11/Scrapyard -10/Materials (discovered 6 exits: [*Mat x3] / *Min x2 / *Sub) -10/Subcaves (discovered 4 exits: [*Mat x2] / *Rec / [*Scr]) -9/Recycling -7/Factory (discovered 3 exits: [*Fac x3]) History --------- Turn | Location | Event 1 | -11/Scrapyard | Upgraded with Propulsion slot (x1) 1 | -11/Scrapyard | Upgraded with Utility slot (x1) 1 | -11/Scrapyard | Upgraded with Weapon slot (x1) 13 | -11/Scrapyard | Discovered new exit (range 14) 221 | -11/Scrapyard | Entered Materials 256 | -10/Materials | Discovered new exit (range 16) 309 | -10/Materials | Discovered new exit (range 10) 315 | -10/Materials | Build established: Mutant 464 | -10/Materials | Central database locked down 471 | -10/Materials | Discovered new exit (range 15) 536 | -10/Materials | Discovered new exit (range 16) 641 | -10/Materials | Discovered new exit (range 13) 683 | -10/Materials | Identified exit to Mines 707 | -10/Materials | Reached level 2 821 | -10/Materials | Derelicts attacked the area 887 | -10/Materials | Discovered new exit (range 15) 1236 | -10/Materials | Reached level 3 1704 | -10/Materials | Reached level 4 1816 | -10/Materials | Upgraded with Power slot (x1) 1816 | -10/Materials | Upgraded with Propulsion slot (x1) 1816 | -10/Materials | Upgraded with Utility slot (x1) 1816 | -10/Materials | Upgraded with Weapon slot (x1) 1849 | -10/Materials | Entered Subcaves 1850 | -10/Subcaves | Approached by a straggling Scientist 2064 | -10/Subcaves | Shifting Twisted Machinery released Mak. Light Armor Plating 2068 | -10/Subcaves | Shifting Twisted Machinery released Mak. System Shield 2093 | -10/Subcaves | Shifting Twisted Machinery released Sub. Laser 2100 | -10/Subcaves | Shifting Twisted Machinery released Battle Cannon 2127 | -10/Subcaves | Build established: Scavenger-Gunner 2159 | -10/Subcaves | Ambushed by Subdwellers from Twisted Machinery 2197 | -10/Subcaves | A swath of the cavern ceiling suddenly collapsed 2409 | -10/Subcaves | Scientist uncovered a shortcut to Scraptown 2658 | -10/Subcaves | Discovered new exit (range 10) 2722 | -10/Subcaves | Visited 4L-MR0's lab 3091 | -10/Subcaves | Build established: Subdweller-Gunner 3229 | -10/Subcaves | Shifting Twisted Machinery released Sub. Machine Gun 3233 | -10/Subcaves | Shifting Twisted Machinery released Barrage Gun 3506 | -10/Subcaves | Disturbed a concealed Subdweller 3506 | -10/Subcaves | Ambushed by Subdweller buried in earth 3632 | -10/Subcaves | Ambushed by angry Subdweller bent on revenge 3716 | -10/Subcaves | A swath of the cavern ceiling suddenly collapsed 3829 | -10/Subcaves | Build established: Scavenger-Gunner 3855 | -10/Subcaves | Discovered new exit (range 7) 4193 | -10/Subcaves | Reached level 5 4221 | -10/Subcaves | Discovered new exit (range 9) 4285 | -10/Subcaves | Entered Recycling 4400 | -9/Recycling | Reached level 6 4754 | -9/Recycling | Discovered new exit (range 14) 4932 | -9/Recycling | Upgraded with Utility slot (x1) 4933 | -9/Recycling | Scanned before Scraplab entrance 4946 | -9/Recycling | Angered Scraplab inhabitants 4948 | -9/Recycling | Found Prototype Device 4948 | -9/Recycling | Identified Scrap Engine 5431 | -9/Recycling | Entered Factory 5433 | -7/Factory | Reached level 7 5453 | -7/Factory | Build established: Mutant 5505 | -7/Factory | Upgraded with Utility slot (x1) 5796 | -7/Factory | Build established: Hacker-Mutant 5898 | -7/Factory | Discovered new exit (range 16) 5960 | -7/Factory | Reached level 8 5976 | -7/Factory | Upgraded with Propulsion slot (x1) 6064 | -7/Factory | Discovered new exit (range 8) 6289 | -7/Factory | Fabricated Enh. Autogun (x1) 6479 | -7/Factory | Build established: Hacker-Sprinter 6598 | -7/Factory | Fabricated Enh. Autogun (x1) 6689 | -7/Factory | Discovered new exit (range 9) 6698 | -7/Factory | Cargo convoy interrupted 6742 | -7/Factory | Core integrity fell below 50% 6787 | -7/Factory | Core integrity fell below 20% 6796 | -7/Factory | Destroyed by A-27 Freighter via exploding Fusion Modulator Last Messages --------------- 06755_ W-25 Informer sends out distress signal. 06757_ C-45 Heavy ARC bursts open, deploying its payload. 06757_ X-62 Marksman unfolds itself. 06757_ P-60 Hacker unfolds itself. 06757_ M-28 Smith unfolds itself. 06758_ K-01 Serf collects debris. 06758_ Slug penetrates K-01 Serf. 06758_ K-01 Serf destroyed. 06758_ Slug penetrates Wall. 06763_ Matter Pump disabled. 06767_ M-28 Smith fits Backup Plating III on R-06 Scavenger. 06769_ Upgraded: Core Integrity (+150) 06771_ Slug penetrates Construction Platform. 06776_ Penetrated by Slug. 06778_ R-06 Scavenger collects Wheel. 06780_ U-05 Engineer works on Matter Pump. 06782_ Matter Pump disabled. 06788_ T-07 Excavator destroyed. 06796_ Fusion Modulator explodes. 06796_ Xenon Bombardment Thruster destroyed. Map ----- +----------------------------------------------------+ | ?????????????????????????????????????????????? | | ?????????????????????????????????????????????? | | ?????????????????????????????????????????????? | | ?????????????????????????????????????????????? | | ?????????????????????????????????????????????? | | ?????????????????????????????????????????????? | | ?????????????????????????????????????????????? | | ?????????????????????????????????????????????? | | ?????????????????????????????????????????????? | | ?????????????????????????????????????????????? | | ?????????????????????????????????????????????? | | ?????????????????????????????????????????????? | | ?????????????????????????????????????????????? | | ?????????????????????????####????????????????? | | ???????????????????# ???? ????????????????? | | ???????????????????# ??? ????????????????? | | ???????????????????# ? ????????????????? | | ???????????????????# ??#????????????? | | ???????????????????#! """ """ #????????????? | | ???????????????????# """ """ #????????????? | | ???????????????????# """ """ #????????????? | | ???????????????????# +????????????? | | ???????????????????# """ #????????????? | | ??????? ???????????# m""" #????????????? | | ????? ???????????# """ !##???????????? | | ?????? ???????????# / A @ ; #??????????? | | ??? ##?#############;#+#########?????????? | | ?? i +??????? | | ? %! ##### #?????????? | | ?"" """ """ """ #???????????????? | | ? "Y """ """ """ #???????????????? | | ?? "" """ """ """ #???????????????? | | ??# xp "##""###???????????????? | | ??# """ " """ ""% #? ?????????????????? | | ??# ""% """ "%" #? """?????????????????? | | ??# ""% """ """ # """ ????????????????? | | ??# x # """ ????????????????? | | ??# # ???????????????? | | ??# # [ ??????????????? | | ######+### ###+######????###?????????????? | | # #? ?????????????????????????? | | """"""" # #?! ?????????????????????????? | | """"""" # # "????????????????????????? | | """"""" # " # "????????????????????????? | | """"""" !# %"# = ???????????????????????? | | # % # ???????????????????????? | | # # ??????????????????????? | | #####+#### ########??????????????????????? | | #??????????????????????? | | #??????????????????????? | +----------------------------------------------------+ Best States ------------- Heat Dissipation 73 Energy Generation 25 Energy Capacity 200 Matter Stores 300 Matter Capacity 300 Sight Range 16 Terrain Scan Range 16 Terrain Scan Density 10 Armor Coverage 800 Weapon Shielding 33 Evasion (%) 63 Offensive Hacking 20 Defensive Hacking 10 Authchip Count 3 Item Schematics ----------------- Enh. Autogun | -7/Factory | Hacked Robot Schematics ------------------ None Fabricated ------------ Enh. Autogun | x1 | -7/Factory | Authchip Enh. Autogun | x1 | -7/Factory Repaired ---------- Nothing Studied --------- None Alien Tech Used ----------------- None Achievements -------------- None Challenges ------------ None RPGLIKE | -11 -10 -10 -9 -7 --------- Run | Yrd Mat Sub Rec Fac Levels Raised 7 | . 3 1 1 2 XP Earned 14955 | 3000 4704 1576 2300 3375 XP Spent 13465 | 2960 4390 . 3150 2965 Upgrades 30 | 10 9 . 4 7 Power Slot 1 | . 1 . . . Propulsion Slot 3 | 1 1 . . 1 Utility Slot 4 | 1 1 . 1 1 Weapon Slot 2 | 1 1 . . . Core Integrity 3 | . . . . 3 Heat Dissipation 8 | 3 3 . . 2 Mass Support 2 | 1 . . 1 . Inventory Capacity 3 | 1 1 . 1 . Ranged Accuracy 4 | 2 1 . 1 . Protomatter Created 1293 | . 583 297 207 206 Integrity Restored 2945 | . 1124 686 618 517 Core 2418 | . 919 508 474 517 Parts 527 | . 205 178 144 . Protomatter Decayed 207 | . 65 142 . . Game ------ Seed SupercompositeMassClaw Manual? 0 Play Time 01:02:59 Cumulative 570.0 hours Start 2026.01.27 @ 13:25:43 End 2026.01.27 @ 17:08:58 Sessions 1 Manual Loads 0 Difficulty Rogue Special Mode Winter2019/RPGLIKE Game No. 222 Rogue 68 Adventurer 154 Explorer 0 Win Type - Total 20 Types 4/4/3/3/2/1/0/1/1/1 Lore% 95 Gallery% 88 Achievement% 61 Wizard Run 0 Options --------- Layout 0 ASCII 0 Keyboard 0 Movement Numpad Keybinds 0 Fullscreen 2 Font 18/SmallcapsGlow Map View 76x50 Zoom Use 0% Tactical HUD 1 Map Filters NONE Filters NONE Steam 1 RUN: 749f8c9e-42b7-4375-a888-279a61d29d79